{"text_format":"3","workbook":"xlsx","n_sheets":1,"sheets":["Ατομικός προϋπολογισμός μήνα"],"read":"whole","date_system":"1900"}

{"sheet":"Ατομικός προϋπολογισμός μήνα","index":0,"n_rows":64,"n_cols":10,"rows_kept":64,"merged":[[1,1,1,9],[2,1,2,9],[4,1,6,1],[4,2,4,3],[4,6,5,8],[4,9,5,9],[5,2,5,3],[6,2,6,3],[6,6,7,8],[6,9,7,9],[7,1,9,1],[7,2,7,3],[8,2,8,3],[8,6,9,8],[8,9,9,9],[9,2,9,3],[22,6,22,9],[23,1,23,4],[31,6,31,9],[33,1,33,4],[38,6,38,9],[40,1,40,4],[44,6,44,9],[46,1,46,4],[50,6,50,9],[54,1,54,4],[57,6,57,9],[58,6,59,8],[58,9,59,9],[60,6,61,8],[60,9,61,9],[62,6,63,8],[62,9,63,9]]}
[]
[null,"Ατομικός προϋπολογισμός μήνα"]
[]
[]
[null,"ΠΡΟΒΛΕΠΟΜΕΝΟ ΜΗΝΑΙΟ ΕΙΣΟΔΗΜΑ","Εισόδημα 1",null,{"v":2500,"d":"2,500 €"},null,"Προβλεπόμενο υπόλοιπο (προβλεπόμενα έσοδα μείον έξοδα)",null,null,{"$f":"E7-J59","v":{"v":940,"d":"940 €"}}]
[null,null,"Επιπλέον εισόδημα",null,{"v":500,"d":"500 €"}]
[null,null,"Συνολικό μηνιαίο εισόδημα",null,{"$f":"SUM(E5:E6)","v":{"v":3000,"d":"3,000 €"}},null,"Πραγματικό υπόλοιπο (πραγματικά έσοδα μείον έξοδα)",null,null,{"$f":"E10-J61","v":{"v":960,"d":"960 €"}}]
[null,"ΠΡΑΓΜΑΤΙΚΟ ΜΗΝΑΙΟ ΕΙΣΟΔΗΜΑ","Εισόδημα 1",null,{"v":2500,"d":"2,500 €"}]
[null,null,"Επιπλέον εισόδημα",null,{"v":500,"d":"500 €"},null,"Διαφορά (πραγματικά μείον προβλεπόμενα)",null,null,{"$f":"J7-J5","v":{"v":20,"d":"20 €"}}]
[null,null,"Συνολικό μηνιαίο εισόδημα",null,{"$f":"SUM(E8:E9)","v":{"v":3000,"d":"3,000 €"}}]
[]
[null,"ΣΤΕΓΑΣΗ","Προβλεπόμενα έξοδα","Πραγματικά έξοδα","Διαφορά",null,"ΔΙΑΣΚΕΔΑΣΗ","Προβλεπόμενα έξοδα","Πραγματικά έξοδα","Διαφορά"]
[null,"Στεγαστικό ή ενοίκιο",{"v":1500,"d":"1,500 €"},{"v":1400,"d":"1,400 €"},{"$f":"Πίνακας1[[#This Row],[Προβλεπόμενα έξοδα]]-Πίνακας1[[#This Row],[Πραγματικά έξοδα]]","v":{"v":100,"d":"100 €"}},null,"Βίντεο/DVD",{"v":0,"d":"0 €"},{"v":50,"d":"50 €"},{"$f":"Πίνακας2[[#This Row],[Προβλεπόμενα έξοδα]]-Πίνακας2[[#This Row],[Πραγματικά έξοδα]]","v":{"v":-50,"d":"-50 €"}}]
[null,"Τηλέφωνο",{"v":60,"d":"60 €"},{"v":100,"d":"100 €"},{"$f":"Πίνακας1[[#This Row],[Προβλεπόμενα έξοδα]]-Πίνακας1[[#This Row],[Πραγματικά έξοδα]]","v":{"v":-40,"d":"-40 €"}},null,"CD",null,null,{"$f":"Πίνακας2[[#This Row],[Προβλεπόμενα έξοδα]]-Πίνακας2[[#This Row],[Πραγματικά έξοδα]]","v":{"v":0,"d":"0 €"}}]
[null,"Ηλεκτρικό",{"v":50,"d":"50 €"},{"v":60,"d":"60 €"},{"$f":"Πίνακας1[[#This Row],[Προβλεπόμενα έξοδα]]-Πίνακας1[[#This Row],[Πραγματικά έξοδα]]","v":{"v":-10,"d":"-10 €"}},null,"Ταινίες",null,null,{"$f":"Πίνακας2[[#This Row],[Προβλεπόμενα έξοδα]]-Πίνακας2[[#This Row],[Πραγματικά έξοδα]]","v":{"v":0,"d":"0 €"}}]
[null,"Αέριο",{"v":200,"d":"200 €"},{"v":180,"d":"180 €"},{"$f":"Πίνακας1[[#This Row],[Προβλεπόμενα έξοδα]]-Πίνακας1[[#This Row],[Πραγματικά έξοδα]]","v":{"v":20,"d":"20 €"}},null,"Συναυλίες",null,null,{"$f":"Πίνακας2[[#This Row],[Προβλεπόμενα έξοδα]]-Πίνακας2[[#This Row],[Πραγματικά έξοδα]]","v":{"v":0,"d":"0 €"}}]
[null,"Ύδρευση και αποχέτευση",null,null,{"$f":"Πίνακας1[[#This Row],[Προβλεπόμενα έξοδα]]-Πίνακας1[[#This Row],[Πραγματικά έξοδα]]","v":{"v":0,"d":"0 €"}},null,"Αθλητικές εκδηλώσεις",null,null,{"$f":"Πίνακας2[[#This Row],[Προβλεπόμενα έξοδα]]-Πίνακας2[[#This Row],[Πραγματικά έξοδα]]","v":{"v":0,"d":"0 €"}}]
[null,"Συνδρομητική τηλεόραση",null,null,{"$f":"Πίνακας1[[#This Row],[Προβλεπόμενα έξοδα]]-Πίνακας1[[#This Row],[Πραγματικά έξοδα]]","v":{"v":0,"d":"0 €"}},null,"Θέατρο",null,null,{"$f":"Πίνακας2[[#This Row],[Προβλεπόμενα έξοδα]]-Πίνακας2[[#This Row],[Πραγματικά έξοδα]]","v":{"v":0,"d":"0 €"}}]
[null,"Αποκομιδή σκουπιδιών",null,null,{"$f":"Πίνακας1[[#This Row],[Προβλεπόμενα έξοδα]]-Πίνακας1[[#This Row],[Πραγματικά έξοδα]]","v":{"v":0,"d":"0 €"}},null,"Άλλο",null,null,{"$f":"Πίνακας2[[#This Row],[Προβλεπόμενα έξοδα]]-Πίνακας2[[#This Row],[Πραγματικά έξοδα]]","v":{"v":0,"d":"0 €"}}]
[null,"Συντήρηση ή επισκευές",null,null,{"$f":"Πίνακας1[[#This Row],[Προβλεπόμενα έξοδα]]-Πίνακας1[[#This Row],[Πραγματικά έξοδα]]","v":{"v":0,"d":"0 €"}},null,"Άλλο",null,null,{"$f":"Πίνακας2[[#This Row],[Προβλεπόμενα έξοδα]]-Πίνακας2[[#This Row],[Πραγματικά έξοδα]]","v":{"v":0,"d":"0 €"}}]
[null,"Προμήθειες",null,null,{"$f":"Πίνακας1[[#This Row],[Προβλεπόμενα έξοδα]]-Πίνακας1[[#This Row],[Πραγματικά έξοδα]]","v":{"v":0,"d":"0 €"}},null,"Άλλο",null,null,{"$f":"Πίνακας2[[#This Row],[Προβλεπόμενα έξοδα]]-Πίνακας2[[#This Row],[Πραγματικά έξοδα]]","v":{"v":0,"d":"0 €"}}]
[null,"Άλλο",null,null,{"$f":"Πίνακας1[[#This Row],[Προβλεπόμενα έξοδα]]-Πίνακας1[[#This Row],[Πραγματικά έξοδα]]","v":{"v":0,"d":"0 €"}},null,"Άθροισμα",{"$f":"SUBTOTAL(109,Πίνακας2[Προβλεπόμενα έξοδα])","v":{"v":0,"d":"0 €"}},{"$f":"SUBTOTAL(109,Πίνακας2[Πραγματικά έξοδα])","v":{"v":50,"d":"50 €"}},{"$f":"SUBTOTAL(109,Πίνακας2[Διαφορά])","v":{"v":-50,"d":"-50 €"}}]
[null,"Άθροισμα",{"$f":"SUBTOTAL(109,Πίνακας1[Προβλεπόμενα έξοδα])","v":{"v":1810,"d":"1,810 €"}},{"$f":"SUBTOTAL(109,Πίνακας1[Πραγματικά έξοδα])","v":{"v":1740,"d":"1,740 €"}},{"$f":"SUBTOTAL(109,Πίνακας1[Διαφορά])","v":{"v":70,"d":"70 €"}}]
[{"$nulls":6},"ΔΑΝΕΙΑ","Προβλεπόμενα έξοδα","Πραγματικά έξοδα","Διαφορά"]
[null,"ΜΕΤΑΚΙΝΗΣΕΙΣ","Προβλεπόμενα έξοδα","Πραγματικά έξοδα","Διαφορά",null,"Προσωπικό",null,null,{"$f":"Πίνακας8[[#This Row],[Προβλεπόμενα έξοδα]]-Πίνακας8[[#This Row],[Πραγματικά έξοδα]]","v":{"v":0,"d":"0 €"}}]
[null,"Δόση οχήματος",{"v":250,"d":"250 €"},{"v":250,"d":"250 €"},{"$f":"Πίνακας3[[#This Row],[Προβλεπόμενα έξοδα]]-Πίνακας3[[#This Row],[Πραγματικά έξοδα]]","v":{"v":0,"d":"0 €"}},null,"Φοιτητικό",null,null,{"$f":"Πίνακας8[[#This Row],[Προβλεπόμενα έξοδα]]-Πίνακας8[[#This Row],[Πραγματικά έξοδα]]","v":{"v":0,"d":"0 €"}}]
[null,"Ναύλα λεωφορείου/ταξί",null,null,{"$f":"Πίνακας3[[#This Row],[Προβλεπόμενα έξοδα]]-Πίνακας3[[#This Row],[Πραγματικά έξοδα]]","v":{"v":0,"d":"0 €"}},null,"Πιστωτική κάρτα",null,null,{"$f":"Πίνακας8[[#This Row],[Προβλεπόμενα έξοδα]]-Πίνακας8[[#This Row],[Πραγματικά έξοδα]]","v":{"v":0,"d":"0 €"}}]
[null,"Ασφάλεια",null,null,{"$f":"Πίνακας3[[#This Row],[Προβλεπόμενα έξοδα]]-Πίνακας3[[#This Row],[Πραγματικά έξοδα]]","v":{"v":0,"d":"0 €"}},null,"Πιστωτική κάρτα",null,null,{"$f":"Πίνακας8[[#This Row],[Προβλεπόμενα έξοδα]]-Πίνακας8[[#This Row],[Πραγματικά έξοδα]]","v":{"v":0,"d":"0 €"}}]
[null,"Τέλη κυκλοφορίας",null,null,{"$f":"Πίνακας3[[#This Row],[Προβλεπόμενα έξοδα]]-Πίνακας3[[#This Row],[Πραγματικά έξοδα]]","v":{"v":0,"d":"0 €"}},null,"Πιστωτική κάρτα",null,null,{"$f":"Πίνακας8[[#This Row],[Προβλεπόμενα έξοδα]]-Πίνακας8[[#This Row],[Πραγματικά έξοδα]]","v":{"v":0,"d":"0 €"}}]
[null,"Καύσιμα",null,null,{"$f":"Πίνακας3[[#This Row],[Προβλεπόμενα έξοδα]]-Πίνακας3[[#This Row],[Πραγματικά έξοδα]]","v":{"v":0,"d":"0 €"}},null,"Άλλο",null,null,{"$f":"Πίνακας8[[#This Row],[Προβλεπόμενα έξοδα]]-Πίνακας8[[#This Row],[Πραγματικά έξοδα]]","v":{"v":0,"d":"0 €"}}]
[null,"Συντήρηση",null,null,{"$f":"Πίνακας3[[#This Row],[Προβλεπόμενα έξοδα]]-Πίνακας3[[#This Row],[Πραγματικά έξοδα]]","v":{"v":0,"d":"0 €"}},null,"Άθροισμα",{"$f":"SUBTOTAL(109,Πίνακας8[Προβλεπόμενα έξοδα])","v":{"v":0,"d":"0 €"}},{"$f":"SUBTOTAL(109,Πίνακας8[Πραγματικά έξοδα])","v":{"v":0,"d":"0 €"}},{"$f":"SUBTOTAL(109,Πίνακας8[Διαφορά])","v":{"v":0,"d":"0 €"}}]
[null,"Άλλο",null,null,{"$f":"Πίνακας3[[#This Row],[Προβλεπόμενα έξοδα]]-Πίνακας3[[#This Row],[Πραγματικά έξοδα]]","v":{"v":0,"d":"0 €"}}]
[null,"Άθροισμα",{"$f":"SUBTOTAL(109,Πίνακας3[Προβλεπόμενα έξοδα])","v":{"v":250,"d":"250 €"}},{"$f":"SUBTOTAL(109,Πίνακας3[Πραγματικά έξοδα])","v":{"v":250,"d":"250 €"}},{"$f":"SUBTOTAL(109,Πίνακας3[Διαφορά])","v":{"v":0,"d":"0 €"}},null,"ΦΟΡΟΙ","Προβλεπόμενα έξοδα","Πραγματικά έξοδα","Διαφορά"]
[{"$nulls":6},"Εθνικοί",null,null,{"$f":"Πίνακας9[[#This Row],[Προβλεπόμενα έξοδα]]-Πίνακας9[[#This Row],[Πραγματικά έξοδα]]","v":{"v":0,"d":"0 €"}}]
[null,"ΑΣΦΑΛΕΙΑ","Προβλεπόμενα έξοδα","Πραγματικά έξοδα","Διαφορά",null,"Περιφερειακοί",null,null,{"$f":"Πίνακας9[[#This Row],[Προβλεπόμενα έξοδα]]-Πίνακας9[[#This Row],[Πραγματικά έξοδα]]","v":{"v":0,"d":"0 €"}}]
[null,"Σπιτιού",null,null,{"$f":"Πίνακας4[[#This Row],[Προβλεπόμενα έξοδα]]-Πίνακας4[[#This Row],[Πραγματικά έξοδα]]","v":{"v":0,"d":"0 €"}},null,"Δημοτικοί",null,null,{"$f":"Πίνακας9[[#This Row],[Προβλεπόμενα έξοδα]]-Πίνακας9[[#This Row],[Πραγματικά έξοδα]]","v":{"v":0,"d":"0 €"}}]
[null,"Υγείας",null,null,{"$f":"Πίνακας4[[#This Row],[Προβλεπόμενα έξοδα]]-Πίνακας4[[#This Row],[Πραγματικά έξοδα]]","v":{"v":0,"d":"0 €"}},null,"Άλλο",null,null,{"$f":"Πίνακας9[[#This Row],[Προβλεπόμενα έξοδα]]-Πίνακας9[[#This Row],[Πραγματικά έξοδα]]","v":{"v":0,"d":"0 €"}}]
[null,"Ζωής",null,null,{"$f":"Πίνακας4[[#This Row],[Προβλεπόμενα έξοδα]]-Πίνακας4[[#This Row],[Πραγματικά έξοδα]]","v":{"v":0,"d":"0 €"}},null,"Άθροισμα",{"$f":"SUBTOTAL(109,Πίνακας9[Προβλεπόμενα έξοδα])","v":{"v":0,"d":"0 €"}},{"$f":"SUBTOTAL(109,Πίνακας9[Πραγματικά έξοδα])","v":{"v":0,"d":"0 €"}},{"$f":"SUBTOTAL(109,Πίνακας9[Διαφορά])","v":{"v":0,"d":"0 €"}}]
[null,"Άλλο",null,null,{"$f":"Πίνακας4[[#This Row],[Προβλεπόμενα έξοδα]]-Πίνακας4[[#This Row],[Πραγματικά έξοδα]]","v":{"v":0,"d":"0 €"}}]
[null,"Άθροισμα",{"$f":"SUBTOTAL(109,Πίνακας4[Προβλεπόμενα έξοδα])","v":{"v":0,"d":"0 €"}},{"$f":"SUBTOTAL(109,Πίνακας4[Πραγματικά έξοδα])","v":{"v":0,"d":"0 €"}},{"$f":"SUBTOTAL(109,Πίνακας4[Διαφορά])","v":{"v":0,"d":"0 €"}},null,"ΑΠΟΤΑΜΙΕΥΣΕΙΣ Ή ΕΠΕΝΔΥΣΕΙΣ","Προβλεπόμενα έξοδα","Πραγματικά έξοδα","Διαφορά"]
[{"$nulls":6},"Λογαριασμός συνταξιοδότησης",null,null,{"$f":"Πίνακας10[[#This Row],[Προβλεπόμενα έξοδα]]-Πίνακας10[[#This Row],[Πραγματικά έξοδα]]","v":{"v":0,"d":"0 €"}}]
[null,"ΦΑΓΗΤΟ","Προβλεπόμενα έξοδα","Πραγματικά έξοδα","Διαφορά",null,"Επενδυτικός λογαριασμός",null,null,{"$f":"Πίνακας10[[#This Row],[Προβλεπόμενα έξοδα]]-Πίνακας10[[#This Row],[Πραγματικά έξοδα]]","v":{"v":0,"d":"0 €"}}]
[null,"Ψώνια",null,null,{"$f":"Πίνακας5[[#This Row],[Προβλεπόμενα έξοδα]]-Πίνακας5[[#This Row],[Πραγματικά έξοδα]]","v":{"v":0,"d":"0 €"}},null,"Άλλο",null,null,{"$f":"Πίνακας10[[#This Row],[Προβλεπόμενα έξοδα]]-Πίνακας10[[#This Row],[Πραγματικά έξοδα]]","v":{"v":0,"d":"0 €"}}]
[null,"Εστιατόρια",null,null,{"$f":"Πίνακας5[[#This Row],[Προβλεπόμενα έξοδα]]-Πίνακας5[[#This Row],[Πραγματικά έξοδα]]","v":{"v":0,"d":"0 €"}},null,"Άθροισμα",{"$f":"SUBTOTAL(109,Πίνακας10[Προβλεπόμενα έξοδα])","v":{"v":0,"d":"0 €"}},{"$f":"SUBTOTAL(109,Πίνακας10[Πραγματικά έξοδα])","v":{"v":0,"d":"0 €"}},{"$f":"SUBTOTAL(109,Πίνακας10[Διαφορά])","v":{"v":0,"d":"0 €"}}]
[null,"Άλλο",null,null,{"$f":"Πίνακας5[[#This Row],[Προβλεπόμενα έξοδα]]-Πίνακας5[[#This Row],[Πραγματικά έξοδα]]","v":{"v":0,"d":"0 €"}}]
[null,"Άθροισμα",{"$f":"SUBTOTAL(109,Πίνακας5[Προβλεπόμενα έξοδα])","v":{"v":0,"d":"0 €"}},{"$f":"SUBTOTAL(109,Πίνακας5[Πραγματικά έξοδα])","v":{"v":0,"d":"0 €"}},{"$f":"SUBTOTAL(109,Πίνακας5[Διαφορά])","v":{"v":0,"d":"0 €"}},null,"ΔΩΡΑ ΚΑΙ ΔΩΡΕΕΣ","Προβλεπόμενα έξοδα","Πραγματικά έξοδα","Διαφορά"]
[{"$nulls":6},"Φιλανθρωπική οργάνωση 1",null,null,{"$f":"Πίνακας11[[#This Row],[Προβλεπόμενα έξοδα]]-Πίνακας11[[#This Row],[Πραγματικά έξοδα]]","v":{"v":0,"d":"0 €"}}]
[null,"ΚΑΤΟΙΚΙΔΙΑ","Προβλεπόμενα έξοδα","Πραγματικά έξοδα","Διαφορά",null,"Φιλανθρωπική οργάνωση 2",null,null,{"$f":"Πίνακας11[[#This Row],[Προβλεπόμενα έξοδα]]-Πίνακας11[[#This Row],[Πραγματικά έξοδα]]","v":{"v":0,"d":"0 €"}}]
[null,"Φαγητό",null,null,{"$f":"Πίνακας6[[#This Row],[Προβλεπόμενα έξοδα]]-Πίνακας6[[#This Row],[Πραγματικά έξοδα]]","v":{"v":0,"d":"0 €"}},null,"Φιλανθρωπική οργάνωση 3",null,null,{"$f":"Πίνακας11[[#This Row],[Προβλεπόμενα έξοδα]]-Πίνακας11[[#This Row],[Πραγματικά έξοδα]]","v":{"v":0,"d":"0 €"}}]
[null,"Ιατρικά",null,null,{"$f":"Πίνακας6[[#This Row],[Προβλεπόμενα έξοδα]]-Πίνακας6[[#This Row],[Πραγματικά έξοδα]]","v":{"v":0,"d":"0 €"}},null,"Άθροισμα",{"$f":"SUBTOTAL(109,Πίνακας11[Προβλεπόμενα έξοδα])","v":{"v":0,"d":"0 €"}},{"$f":"SUBTOTAL(109,Πίνακας11[Πραγματικά έξοδα])","v":{"v":0,"d":"0 €"}},{"$f":"SUBTOTAL(109,Πίνακας11[Διαφορά])","v":{"v":0,"d":"0 €"}}]
[null,"Περιποίηση",null,null,{"$f":"Πίνακας6[[#This Row],[Προβλεπόμενα έξοδα]]-Πίνακας6[[#This Row],[Πραγματικά έξοδα]]","v":{"v":0,"d":"0 €"}}]
[null,"Παιχνίδια",null,null,{"$f":"Πίνακας6[[#This Row],[Προβλεπόμενα έξοδα]]-Πίνακας6[[#This Row],[Πραγματικά έξοδα]]","v":{"v":0,"d":"0 €"}},null,"ΝΟΜΙΚΑ","Προβλεπόμενα έξοδα","Πραγματικά έξοδα","Διαφορά"]
[null,"Άλλο",null,null,{"$f":"Πίνακας6[[#This Row],[Προβλεπόμενα έξοδα]]-Πίνακας6[[#This Row],[Πραγματικά έξοδα]]","v":{"v":0,"d":"0 €"}},null,"Δικηγόρος",null,null,{"$f":"Πϊνακας12[[#This Row],[Προβλεπόμενα έξοδα]]-Πϊνακας12[[#This Row],[Πραγματικά έξοδα]]","v":{"v":0,"d":"0 €"}}]
[null,"Άθροισμα",{"$f":"SUBTOTAL(109,Πίνακας6[Προβλεπόμενα έξοδα])","v":{"v":0,"d":"0 €"}},{"$f":"SUBTOTAL(109,Πίνακας6[Πραγματικά έξοδα])","v":{"v":0,"d":"0 €"}},{"$f":"SUBTOTAL(109,Πίνακας6[Διαφορά])","v":{"v":0,"d":"0 €"}},null,"Διατροφή",null,null,{"$f":"Πϊνακας12[[#This Row],[Προβλεπόμενα έξοδα]]-Πϊνακας12[[#This Row],[Πραγματικά έξοδα]]","v":{"v":0,"d":"0 €"}}]
[{"$nulls":6},"Πληρωμές με επίσχεση ή δικαστική απόφαση",null,null,{"$f":"Πϊνακας12[[#This Row],[Προβλεπόμενα έξοδα]]-Πϊνακας12[[#This Row],[Πραγματικά έξοδα]]","v":{"v":0,"d":"0 €"}}]
[null,"ΠΡΟΣΩΠΙΚΗ ΦΡΟΝΤΙΔΑ","Προβλεπόμενα έξοδα","Πραγματικά έξοδα","Διαφορά",null,"Άλλο",null,null,{"$f":"Πϊνακας12[[#This Row],[Προβλεπόμενα έξοδα]]-Πϊνακας12[[#This Row],[Πραγματικά έξοδα]]","v":{"v":0,"d":"0 €"}}]
[null,"Ιατρικά",null,null,{"$f":"Πίνακας7[[#This Row],[Προβλεπόμενα έξοδα]]-Πίνακας7[[#This Row],[Πραγματικά έξοδα]]","v":{"v":0,"d":"0 €"}},null,"Άθροισμα",{"$f":"SUBTOTAL(109,Πϊνακας12[Προβλεπόμενα έξοδα])","v":{"v":0,"d":"0 €"}},{"$f":"SUBTOTAL(109,Πϊνακας12[Πραγματικά έξοδα])","v":{"v":0,"d":"0 €"}},{"$f":"SUBTOTAL(109,Πϊνακας12[Διαφορά])","v":{"v":0,"d":"0 €"}}]
[null,"Κομμωτήριο",null,null,{"$f":"Πίνακας7[[#This Row],[Προβλεπόμενα έξοδα]]-Πίνακας7[[#This Row],[Πραγματικά έξοδα]]","v":{"v":0,"d":"0 €"}}]
[null,"Ρούχα",null,null,{"$f":"Πίνακας7[[#This Row],[Προβλεπόμενα έξοδα]]-Πίνακας7[[#This Row],[Πραγματικά έξοδα]]","v":{"v":0,"d":"0 €"}},null,"ΣΥΝΟΛΙΚΟ ΠΡΟΒΛΕΠΟΜΕΝΟ ΚΟΣΤΟΣ",null,null,{"$f":"SUM(C23,C33,C40,C46,C54,C64,H22,H31,H38,H44,H50,H57)","v":{"v":2060,"d":"2,060 €"}}]
[null,"Στεγνοκαθαριστήριο",null,null,{"$f":"Πίνακας7[[#This Row],[Προβλεπόμενα έξοδα]]-Πίνακας7[[#This Row],[Πραγματικά έξοδα]]","v":{"v":0,"d":"0 €"}}]
[null,"Γυμναστήριο",null,null,{"$f":"Πίνακας7[[#This Row],[Προβλεπόμενα έξοδα]]-Πίνακας7[[#This Row],[Πραγματικά έξοδα]]","v":{"v":0,"d":"0 €"}},null,"ΣΥΝΟΛΙΚΑ ΠΡΑΓΜΑΤΙΚΑ ΕΞΟΔΑ",null,null,{"$f":"SUM(D23,D33,D40,D46,D54,D64,I22,I31,I38,I44,I50,I57)","v":{"v":2040,"d":"2,040 €"}}]
[null,"Συμμετοχή σε οργανώσεις",null,null,{"$f":"Πίνακας7[[#This Row],[Προβλεπόμενα έξοδα]]-Πίνακας7[[#This Row],[Πραγματικά έξοδα]]","v":{"v":0,"d":"0 €"}}]
[null,"Άλλο",null,null,{"$f":"Πίνακας7[[#This Row],[Προβλεπόμενα έξοδα]]-Πίνακας7[[#This Row],[Πραγματικά έξοδα]]","v":{"v":0,"d":"0 €"}},null,"ΣΥΝΟΛΙΚΗ ΔΙΑΦΟΡΑ",null,null,{"$f":"SUM(E23,E33,E40,E46,E54,E64,J22,J31,J38,J44,J50,J57)","v":{"v":20,"d":"20 €"}}]
[null,"Άθροισμα",{"$f":"SUBTOTAL(109,Πίνακας7[Προβλεπόμενα έξοδα])","v":{"v":0,"d":"0 €"}},{"$f":"SUBTOTAL(109,Πίνακας7[Πραγματικά έξοδα])","v":{"v":0,"d":"0 €"}},{"$f":"SUBTOTAL(109,Πίνακας7[Διαφορά])","v":{"v":0,"d":"0 €"}}]